Cogmind - Beta 11.1 @@@ ROGUE MODE // 2022.07.09 @ 21:40:10 Player: Candesce Result: Destroyed by D-53 Grenadier with Mini Grenade Launcher Performance ------------- Evolutions (0) 0 Regions Visited (2) 400 Robots Destroyed (17) 85 Value Destroyed (334) 334 Prototype IDs (2) 40 Alien Tech Used (0) 0 Bonus (0) 0 TOTAL SCORE: 859 Bonus ------- None Cogmind --------- Core Integrity 0/250 Matter 300/300 Energy 100/100 System Corruption 2% Temperature Cool (0) Movement Core (250) Ox4 Location -10/Mines Parts ------- > --- POWER (1) -------- (None) > --- PROPULSION (2) --- (None) > --- UTILITY (2) ------ Medium Storage Unit > --- WEAPON (2) ------- Heavy Hammer > --- INVENTORY (10) --- Compact Wheel Disposable Heat Sink Sensor Array Seismic Detector ECM Suite Bomb Drone Bay Grenade Launcher Heavy Hammer Peak State ------------ > --- POWER ------------ Ion Engine > --- PROPULSION ------- Wheel Wheel > --- UTILITY ---------- Medium Storage Unit Seismic Detector > --- WEAPON ----------- Assault Rifle Heavy Hammer > --- INVENTORY -------- Compact Wheel Disposable Heat Sink Sensor Array ECM Suite Light Armor Plating Light Armor Plating Bomb Drone Bay Grenade Launcher Heavy Hammer [Rating: 10] Favorites ----------- Power Ion Engine Engine Ion Engine Propulsion Wheel Wheel Wheel Utility Seismic Detector Device Seismic Detector Storage Medium Storage Unit Protection Light Armor Plating Weapon Assault Rifle Ballistic Gun Assault Rifle Launcher Grenade Launcher Impact Weapon Heavy Hammer Build | -11 -10 -10 ------- Run | Scr Mat Min Slots Evolved . | . . . Power . | . . . Propulsion . | . . . Utility . | . . . Weapon . | . . . Parts Attached 20 | 8 8 4 Power 2 | 2 . . Engine 2 | 2 . . Core . | . . . Reactor . | . . . Propulsion 2 | 2 . . Treads . | . . . Leg . | . . . Wheel 2 | 2 . . Hover . | . . . Flight . | . . . Utility 7 | 2 2 3 Device 2 | 1 . 1 Storage 2 | 1 1 . Processor . | . . . Hackware . | . . . Protection 3 | . 1 2 Artifact . | . . . Weapon 9 | 2 6 1 Energy Gun . | . . . Energy Cannon . | . . . Ballistic Gun 5 | 2 2 1 Ballistic Cannon . | . . . Launcher 3 | . 3 . Special Weapon . | . . . Impact Weapon 1 | . 1 . Slashing Weapon . | . . . Piercing Weapon . | . . . Special Melee Weapon . | . . . Unidentified Prototypes . | . . . Parts Lost 6 | . . 6 Power 1 | . . 1 Propulsion 2 | . . 2 Utility 2 | . . 2 Weapon 1 | . . 1 Highest Loss Streak 6 | . . 6 To Critical Strikes . | . . . Average Slot Usage (%) 98 | . 100 95 Engine 13 | . 14 13 Wheel 28 | . 28 28 Device 13 | . 14 11 Storage 14 | . 14 14 Ballistic Gun 14 | . 14 11 Impact Weapon 12 | . 12 14 Naked Turns . | . . . Heaviest Build 24 | 14 24 21 Greatest Support 20 | 20 20 20 Greatest Overweight (x) 4 | . 1 4 Average Overweight (x) . | . . . Largest Inventory Capacity 10 | 8 10 10 Average Capacity 9 | 6 9 10 Most Carried 10 | 4 8 10 Average Carried 7 | 1 7 9 Final Capacity 10 | 8 10 10 Final Carried 9 | 4 8 9 Class Distribution -------------------- 100% | Mutant Dominant Class ---------------- Mutant | -10/Materials Mutant | -10/Mines Resources | -11 -10 -10 ----------- Run | Scr Mat Min Matter Collected 438 | 292 58 88 Remotely . | . . . Salvage Created 537 | 130 383 24 Parts 18 | 8 9 1 Haulers Intercepted 1 | . 1 . Recyclers Shooed . | . . . Parts Field Recycled . | . . . Retrieved Matter . | . . . Parts Self-Destructed . | . . . Prevented . | . . . Kills | -11 -10 -10 ------- Run | Scr Mat Min Combat Hostiles Destroyed 11 | . 9 2 Melee 4 | . 3 1 AOE 3 | . 3 . Classes Destroyed 6 | 2 4 . Tunneler 2 | 2 . . Hauler 1 | . 1 . Recycler 2 | 1 1 . Operator 1 | . 1 . Swarmer 5 | . 3 2 Grunt 6 | . 6 . Best Kill Streak 2 | 2 2 2 Combat Bots Only 2 | . 2 2 Max Kills in Single Turn 2 | 1 2 1 Gunslinging . | . . . Exploded 2 | . 2 . Melee 1 | . 1 1 Uniques/NPCs Destroyed . | . . . Combat | -11 -10 -10 -------- Run | Scr Mat Min Damage Taken 887 | . 154 733 Core 250 | . 50 200 Absorbed by Shields . | . . . Core Remaining (%) 100 | 100 . . Volleys Fired 8 | 3 5 . Largest 2 | 2 1 . Hottest 40 | 40 30 . Shots Fired 11 | 6 5 . Gun 8 | 6 2 . Cannon . | . . . Launcher 3 | . 3 . Special . | . . . Kinetic 8 | 6 2 . Thermal . | . . . Explosive 3 | . 3 . Electromagnetic . | . . . Robot Hit Streak 5 | 3 5 . Robot Miss Streak . | . . . Penetration Max . | . . . Secondary Targets . | . . . Shots Hit Robots 26 | 3 19 4 Core Hits 8 | 3 4 1 Critical Kills . | . . . Critical Parts Destroyed 5 | . 4 1 Critical Strikes 5 | . 4 1 Smash 5 | . 4 1 Melee Attacks 26 | . 21 5 Impact 26 | . 21 5 Slashing . | . . . Piercing . | . . . Sneak Attacks 3 | . 3 . Combat Hostiles . | . . . Follow-up Attacks . | . . . Damage Inflicted 1257 | 42 1024 191 Guns 68 | 42 26 . Cannons . | . . . Explosions 145 | . 145 . Melee 1044 | . 853 191 Ramming . | . . . Kinetic 68 | 42 26 . Thermal . | . . . Explosive 145 | . 145 . Electromagnetic . | . . . Impact 1044 | . 853 191 Slashing . | . . . Piercing . | . . . Highest Corruption 2 | . 2 2 Average Corruption 1 | . 1 2 Corruption Purged . | . . . Corruption Blocked . | . . . Effects 3 | . . 3 Message Errors 1 | . . 1 Data Loss (minor) 1 | . . 1 Alerts 1 | . . 1 Overload Shots . | . . . Overflow Damage 338 | . 297 41 Projectiles . | . . . Explosions 7 | . 7 . Melee 331 | . 290 41 Knockbacks 7 | . 7 . Impact 6 | . 6 . Kinetic . | . . . Secondary 1 | . 1 . Self-Inflicted Damage 52 | . 52 . Shots 2 | . 2 . Rammed . | . . . Targets Rammed . | . . . Kicked . | . . . Crushed . | . . . Highest Temperature . | . . . Average Temperature . | . . . Received Heat Transfer 21 | . 21 . Siege Activations . | . . . Robots Corrupted . | . . . Combat Hostiles . | . . . Parts Fried 13 | . 11 2 Impact Corruptions 14 | . 12 2 Robots Melted . | . . . Combat Hostiles . | . . . Parts Melted . | . . . Heat Transferred . | . . . Parts Sabotaged . | . . . Parts Stolen . | . . . Parts Stripped . | . . . Power Chain Reactions . | . . . Missiles Intercepted . | . . . Alert | -11 -10 -10 ------- Run | Scr Mat Min Peak Influence 267 | 15 267 65 Initial 9 | . 9 9 Average 58 | 4 85 10 Maximum Alert Level 1 | . 1 . Low Security (%) 95 | 100 93 100 Level 1 4 | . 6 . Level 2 . | . . . Level 3 . | . . . Level 4 . | . . . Level 5 . | . . . High Security . | . . . Max Security . | . . . Squads Dispatched 2 | . 2 . Investigation 1 | . 1 . Extermination . | . . . Reinforcement 1 | . 1 . Assault . | . . . Garrison . | . . . Intercept . | . . . Searches Triggered . | . . . Construction Impeded . | . . . Haulers Reinforced . | . . . Active Scanning Responses . | . . . Cargo Convoy Interrupts . | . . . Stealth | -11 -10 -10 --------- Run | Scr Mat Min Distress Signals 1 | . 1 . Communications Jammed . | . . . Distress Signals . | . . . Times Spotted 24 | . 16 8 Peak Tracking Total 16 | . 4 16 Tactical Retreats 5 | . 3 2 Traps | -11 -10 -10 ------- Run | Scr Mat Min Traps Triggered 2 | . 2 . Indirectly . | . . . Trap Hack Attempts . | . . . Triggered . | . . . Disarmed . | . . . Reprogrammed . | . . . Reused . | . . . Traps Extracted . | . . . Installed . | . . . Triggered . | . . . Machines | -11 -10 -10 ---------- Run | Scr Mat Min Machines Disabled 1 | . 1 . Max in Single Turn 1 | . 1 . Machines Sabotaged . | . . . Garrisons Compromised . | . . . Overloaded Fab Kills . | . . . Hacking | -11 -10 -10 --------- Run | Scr Mat Min Machines Accessed 8 | . 7 1 Terminals 6 | . 6 . Fabricators . | . . . Repair Stations . | . . . Recycling Units 1 | . 1 . Scanalyzers . | . . . Garrison Access . | . . . Total Hacks 29 | . 28 1 Successful 13 | . 12 1 Failed 16 | . 16 . Catastrophic 1 | . 1 . Database Lockouts . | . . . Manual 15 | . 15 . Terminals 25 | . 25 . Fabricators . | . . . Repair Stations . | . . . Recycling Units 3 | . 3 . Scanalyzers . | . . . Garrison Access . | . . . Terminal Hacks 12 | . 11 1 Part Schematic 1 | . 1 . Robot Schematic 1 | . 1 . Robot Analysis 1 | . 1 . Prototype ID Bank 1 | . 1 . Open Door 1 | . . 1 Branch Access Points 1 | . 1 . Terminal Index 1 | . 1 . Scanalyzer Index 1 | . 1 . Unreport Threat 2 | . 2 . Hauler Manifests 1 | . 1 . Zone Layout 1 | . 1 . Fabricator Hacks . | . . . Repair Station Hacks . | . . . Recycling Unit Hacks . | . . . Scanalyzer . | . . . Garrison Access Hacks . | . . . Unauthorized Hacks 1 | . 1 . Terminals 1 | . 1 . Operators 1 | . 1 . Fabricators . | . . . Repair Stations . | . . . Recycling Units . | . . . Scanalyzers . | . . . Garrison Access . | . . . Data Cores Recovered . | . . . Used . | . . . Hacking Detections 7 | . 7 . Full Trace Events 2 | . 2 . Feedback Events . | . . . Feedback Blocked . | . . . Robot Schematics Acquired 1 | . 1 . Robots Built . | . . . Authchips . | . . . Time . | . . . Total Robot Build Rating . | . . . Part Schematics Acquired 1 | . 1 . Parts Built . | . . . Authchips . | . . . Time . | . . . Total Part Build Rating . | . . . Parts Repaired . | . . . Time . | . . . Parts Recycled . | . . . Recycled Matter . | . . . Retrieved Matter . | . . . Retrieved Components . | . . . Parts Scanalyzed . | . . . Part Schematics Acquired . | . . . Parts Damaged . | . . . Bothacking | -11 -10 -10 ------------ Run | Scr Mat Min Used RIF Installer . | . . . Robots Hacked . | . . . Non-combat . | . . . Combat . | . . . Robot Hacks Applied . | . . . Relay Couplers Released . | . . . Fabnet Peak Effective % . | . . . Robots Rewired . | . . . Allies Hacked . | . . . Hacks Repelled . | . . . Allies | -11 -10 -10 -------- Run | Scr Mat Min Total Allies . | . . . Largest Group . | . . . Highest-Rated Group . | . . . Highest-Rated Ally . | . . . Total Orders . | . . . Ally Attacks . | . . . Total Damage . | . . . Kills . | . . . Allies Corrupted . | . . . Allies Melted . | . . . Intel | -11 -10 -10 ------- Run | Scr Mat Min Robot Analysis Total 1 | . 1 . Derelict Logs Recovered 1 | . . 1 Drone Launches . | . . . Drone Recoveries . | . . . Exploration | -11 -10 -10 ------------- Run | Scr Mat Min Turns Passed 736 | 81 481 174 Spaces Moved 590 | 69 360 161 Core 4 | 3 . 1 Treads . | . . . Legs . | . . . Wheels 586 | 66 360 160 Hover . | . . . Flight . | . . . Fastest Speed 50 | 50 80 80 Average Speed 91 | 78 91 95 Slowest Speed 250 | 80 95 250 Overloaded Moves . | . . . Propulsion Burnouts . | . . . Robots Hopped . | . . . Cave-ins Triggered . | . . . Exploration Rate (%) 32 | 4 52 42 Regions Visited 2 Branch Regions 1 Pre-discovered Areas . | . . . Known Exits Taken 1 | . 1 . Unknown Exits Taken 1 | 1 . . Scrap Searched 1 | . . 1 Spaces Dug 17 | . 17 . Terrain Destroyed 27 | . 27 . Melee . | . . . Projectile . | . . . AOE 27 | . 27 . Terrain Rammed . | . . . Walls Destroyed . | . . . Machines Disabled . | . . . Actions | -11 -10 -10 --------- Run | Scr Mat Min Total 724 | 86 467 171 Wait 66 | 4 62 . Move 588 | 68 359 161 Hop . | . . . Pick Up 11 | 3 7 1 Fast Attach 8 | 7 1 . Attach 1 | . . 1 Detach . | . . . Swap 11 | 1 7 3 Drop 5 | . 5 . Fire 8 | 3 5 . Melee 26 | . 21 5 Ram . | . . . Kick . | . . . Crush . | . . . Escape Stasis . | . . . Rewire . | . . . Trap . | . . . Miscellaneous . | . . . Route ------- -11/Scrapyard -10/Materials -10/Mines History --------- Turn | Location | Event 12 | -11/Scrapyard | Discovered new exit (range 16) 82 | -11/Scrapyard | Entered Materials 307 | -10/Materials | Build established: Mutant 536 | -10/Materials | Identified exit to Mines 563 | -10/Materials | Entered Mines 594 | -10/Mines | Found the Drone Emporium 600 | -10/Mines | Found Prototype Device 682 | -10/Mines | Assembled infested the area 733 | -10/Mines | Core integrity fell below 50% 737 | -10/Mines | Core integrity fell below 20% 737 | -10/Mines | Destroyed by D-53 Grenadier with Mini Grenade Launcher Last Messages --------------- 00724_ U-05 Engineer lays Concrete. 00727_ U-05 Engineer builds a Wall. 00727_ S-10 Pest suffers critical hit (Smash). 00727_ Destroyed Flight Unit. 00727_ Destroyed Lgt. Ion Engine. 00727_ S-10 Pest system corrupted by crushing effect. 00727_ S-10 Pest IFF system glitched. 00727_ S-10 Pest destroyed. 00728_ S-10 Pest system terminally corrupted. 00728_ Lgt. Assault Rifle fried. 00728_ Flight Unit fried. 00728_ The unstable cave ceiling collapses. 00728_ Ion Engine destroyed. 00729_ The unstable cave ceiling collapses. 00730_ U-05 Engineer builds a Wall. 00732_ Lgt. Armor Plating destroyed. 00733_ The unstable cave ceiling collapses. 00734_ Wheel destroyed. 00734_ U-05 Engineer destroyed. 00735_ The unstable cave ceiling collapses. Map ----- +----------------------------------------------------+ | #?????####???????????????# ######## | | #????????????????????????# ##????????? | | ######????????????????????????# #????????????? | | ??????????????????????????????# #??????????????? | | ??????????????????????????????# ##??????????????? | | ??????????????????????????????# #???????????????? | | ??????????????????????????????# ##??????????????? | | ??????????????????????????????# ##?????????????? | | ????????????????????????????### #?????????????? | | ????????????????????????###### #?????????????? | | ????????????????????????# ## #?????????????? | | ???????????????????????## # ##?????????????? | | ???????????????????????# # " ##?????????????? | | ???????????????????????# " ##????????????? | | ???????????????????????# " #???#????????? | | ???????????????????????# #?? ###??????? | | ???????????????????????# # = ### ## #?? | | ???????????????????????## # d * ?? | | ????????????????????????## # # t ?? | | ??????????????????????###### d# #?? | | ??????????????????????? #? ???? | | ?????????????????????### # #???? ???? | | ?????????????????????# #????????????? | | ???????????????####### #????????????? | | ???????????????# ##????????????? | | ?????????????????##### @ ##?????????????? | | ????????????????????# # ##??????????????? | | ????????????????????## ####???????????????? | | ???????????????????? # ##??????????????????? | | ?????????????????? #??????????????????? | | ????????????????? ##### #??????????????????? | | ??????????????? ????? #??????????????????? | | ??????????????## #?????? ??????????????????? | | ???????????????## ???????? ?????????????????? | | ????????????????##$ # ???????? ????????????????? | | ?????????????????## # ?????????? ????????????????? | | ??????????????????#?# ??????????? ???????????????? | | ????????????????????##???????????? ??????????????? | | ?????????????????????????????????????????????????? | | ?????????????????????????????????????????????????? | | ?????????????????????????????????????????????????? | | ?????????????????????????????????????????????????? | | ?????????????????????????????????????????????????? | | ?????????????????????????????????????????????????? | | ?????????????????????????????????????????????????? | | ?????????????????????????????????????????????????? | | ?????????????????????????????????????????????????? | | ?????????????????????????????????????????????????? | | ?????????????????????????????????????????????????? | | ?????????????????????????????????????????????????? | +----------------------------------------------------+ Best States ------------- Heat Dissipation 25 Energy Generation 10 Energy Capacity 250 Matter Stores 300 Matter Capacity 300 Sight Range 16 Terrain Scan Density 10 Armor Coverage 150 Evasion (%) 44 Item Schematics ----------------- Hcp. Storage Unit | -10/Materials | Hacked Robot Schematics ------------------ S-10 Pest | -10/Materials | Hacked Fabricated ------------ Nothing Alien Tech Used ----------------- None Achievements -------------- None Challenges ------------ None Game ------ Seed CompositeArchitectModule Manual? 0 Play Time 00:14:55 Cumulative 45.3 hours Start 2022.06.14 @ 10:54:20 End 2022.07.09 @ 21:40:10 Sessions 6 Manual Loads 0 Difficulty Rogue Special Mode None Game No. 116 Rogue 116 Adventurer 0 Explorer 0 Win Type - Total 1 Types 0/0/0/1/0/0/0/0/0 Lore% 54 Gallery% 61 Achievement% 47 Wizard Run 0 Options --------- ASCII 0 Keyboard 0 Movement Numpad Keybinds 0 Fullscreen 1 Font 14/SmallcapsGlow Map View 84x54 Tactical HUD 1 Map Filters NONE Filters NONE Steam 1 RUN: c2c7e31e-343f-4ca9-a919-2306dbbaa0a5